Workbook

Sheet Sheet1
A1: Account | B1: POS Acquired | C1: SR O/s as of Oct 31-2021 | D1: Total Future CF
A2: Lavasa Corporation Limited | B2: 250 | C2: 320.76 | D2: =531.83-2.5 -> 529.33
A3: Shalivahana Green Energy Ltd | B3: 202.7 | C3: 75.01 | D3: =144.98-76.07 -> 68.91
A4: Unijules Life Sciences Ltd. | B4: 59.15 | C4: 15.86 | D4: 12.5
A5: ARCVAC Forgecast Pvt. Ltd. | B5: 121.32 | C5: 18.74 | D5: =128.19-45.71 -> 82.48
A6: Ind Barath Thermal Power Ltd. | B6: 70.23 | C6: 23.16 | D6: 22.75
A7: Jaiprakash Associates Ltd. | B7: 137.73 | C7: 108.68 | D7: 134
A8: Easun Products of India Privat | B8: 61.94 | C8: 0 | D8: 0
A9: K K Welding Limited | B9: 26.4 | C9: 1.06 | D9: =5.92-2.19 -> 3.73
A10: Unimark Remedies Limited | B10: 37.04 | C10: 2.85 | D10: 3.34
A11: Sakthi Sugars Limited / SACL | B11: 407.75 | C11: =107.84+92.61+56.25+6.3+11.51+0.03 -> 274.54 | D11: =496.81-187.6 -> 309.21
A12: Sakthi Auto Component Limited | B12: 27.53 | C12: -9.06 | D12: 45
A13: ABT Limited | B13: 325.35 | C13: 276.6 | D13: =326.81-5.61 -> 321.2
A14: Rajesh Estates | B14: 230 | C14: 230 | D14: 230
A15: Jain Irrigration | B15: 15.25
A16: Nayati Healthcare
A17: Nayati Medical

Sheet Sheet3
B2: Development Cost | C2: 1300000
B3: Linking to Oracle | C3: 350000
B4: Data Entry Cost | C4: 250000
B5: Total Bill | C5: =SUM(C2:C4) -> 1900000
B6: Bifurcation | C6: 0.5 | D6: =1-C6 -> 0.5
B7: Account Name | C7: Mom Account | D7: Dad Account
B8: Bill amount | C8: =C5*C6 -> 950000 | D8: =D6*C5 -> 950000
B9: Less TDS (10%) | C9: =C8*10% -> 95000 | D9: =D8*10% -> 95000
B10: Net Amount | C10: =C8-C9 -> 855000 | D10: =D8-D9 -> 855000
B11: Less Expenses | C11: 106000 | D11: =C11 -> 106000
B12: Less Exempt | C12: 250000 | D12: =C12 -> 250000
B13: Net Taxable | C13: =C10-C11-C12 -> 499000 | D13: =D10-D11-D12 -> 499000

Sheet Sheet2
A1: Sr. NO | B1: Account | C1: 2021-12-01 | D1: 2022-01-01 | E1: 2022-02-01 | F1: 2022-03-01 | G1: Total | H1: Remark | I1: in Crore
A2: 1 | B2: Lavasa Corporation Limited | C2: 0 | D2: 0 | E2: 0 | F2: 0 | G2: =SUM(C2:F2) -> 0
A3: 2 | B3: Shalivahana Green Energy Ltd | C3: 0.75 | D3: 0.75 | E3: 0.75 | F3: 0.75 | G3: 3
A4: 3 | B4: Unijules Life Sciences Ltd. | C4: 0 | D4: 0 | E4: 0 | F4: 0 | G4: 0
A5: 4 | B5: ARCVAC Forgecast Pvt. Ltd. | C5: 2.2 | D5: 0.9 | E5: 0.9 | F5: 2.2 | G5: 6.2
A6: 5 | B6: Ind Barath Thermal Power Ltd. | C6: 0 | D6: 0 | E6: 0 | F6: 0 | G6: 0
A7: 6 | B7: Jaiprakash Associates Ltd. | C7: 0 | D7: 0 | E7: 0 | F7: 0 | G7: 0
A8: 7 | B8: Easun Products of India Privat | C8: 0 | D8: 0 | E8: 0 | F8: 0 | G8: 0
A9: 8 | B9: K K Welding Limited | C9: 0 | D9: 0 | E9: 0 | F9: 0 | G9: 0
A10: 9 | B10: Unimark Remedies Limited | C10: 0 | D10: 0 | E10: 0 | F10: 0 | G10: 0
A11: 10 | B11: Sakthi Sugars Limited / SACL | C11: 0 | D11: 292 | E11: 0 | F11: 18 | G11: 310
A12: 11 | B12: Sakthi Auto Component Limited | C12: 0 | D12: 0 | E12: 0 | F12: 0 | G12: 0 | H12: Case Exited
A13: 12 | B13: ABT Limited | C13: 0 | D13: 0 | E13: 0 | F13: 0 | G13: 0 | H13: Case Exited
A14: 13 | B14: Rajesh Estates | C14: 0 | D14: 230 | E14: 0 | F14: 0 | G14: 230 | H14: 0
A15: 14 | B15: Jain Irrigration | C15: 0 | D15: 5.5 | E15: 0.57 | F15: 0.57 | G15: 6.64
A16: 15 | B16: Nayati Healthcare | C16: 0 | D16: 0 | E16: 0 | F16: 0 | G16: 0
A17: 16 | B17: Nayati Medical | C17: 0 | D17: 0 | E17: 0 | F17: 0 | G17: 0
B18: Total | C18: =SUM(C2:C17) -> 2.95 | D18: =SUM(D2:D17) -> 529.15 | E18: 2.22 | F18: 21.52 | G18: =SUM(C18:F18) -> 555.84

Sheet Sheet4
A2: 1280000 | B2: =RupeeFormat(A2) -> 
